[Event "Late-Titled-Tuesday-Blitz-February-27-2024"]
[Site "Chess.com"]
[Date "2024.02.27"]
[Round "6"]
[White "toninhojit"]
[Black "trriinu"]
[Result "1-0"]
[WhiteElo "2461"]
[BlackElo "2247"]
[TimeControl "180+1"]
[EndTime "15:03:08 PST"]
[Termination "toninhojit won on time"]

1. e4 {[%clk 0:03:00.9]} 1... d5 {[%clk 0:02:22.5]} 2. exd5 {[%clk 0:02:59]}
2... Qxd5 {[%clk 0:02:23.4]} 3. Nc3 {[%clk 0:02:59.3]} 3... Qd6 {[%clk
0:02:23.6]} 4. Nf3 {[%clk 0:02:58.8]} 4... Nf6 {[%clk 0:02:24.1]} 5. g3 {[%clk
0:02:59.1]} 5... Nc6 {[%clk 0:02:24.8]} 6. Bg2 {[%clk 0:02:59.6]} 6... Bg4
{[%clk 0:02:25.4]} 7. d3 {[%clk 0:03:00.1]} 7... e6 {[%clk 0:02:25.9]} 8. O-O
{[%clk 0:02:59.8]} 8... O-O-O {[%clk 0:02:25.6]} 9. Be3 {[%clk 0:02:56.9]} 9...
a6 {[%clk 0:02:24.6]} 10. h3 {[%clk 0:02:57.3]} 10... Bh5 {[%clk 0:02:22.4]} 11.
Ne4 {[%clk 0:02:54.7]} 11... Nxe4 {[%clk 0:02:18.7]} 12. dxe4 {[%clk 0:02:55.6]}
12... Qb4 {[%clk 0:02:15.8]} 13. Qe1 {[%clk 0:02:42.5]} 13... Qxb2 {[%clk
0:01:25.3]} 14. g4 {[%clk 0:02:38.8]} 14... Bg6 {[%clk 0:01:25]} 15. Rb1 {[%clk
0:02:25.1]} 15... Qa3 {[%clk 0:01:18.1]} 16. Rb3 {[%clk 0:02:22]} 16... Qxa2
{[%clk 0:00:59.5]} 17. Qc3 {[%clk 0:02:14.8]} 17... Qa5 {[%clk 0:00:14.1]} 18.
Qb2 {[%clk 0:02:14.4]} 18... b5 {[%clk 0:00:02]} 19. Ra1 {[%clk 0:02:13.4]} 1-0

[Event "Late-Titled-Tuesday-Blitz-February-27-2024"]
[Site "Chess.com"]
[Date "2024.02.27"]
[Round "6"]
[White "GmSergioBarrientos"]
[Black "bipe137"]
[Result "1-0"]
[WhiteElo "2731"]
[BlackElo "2573"]
[TimeControl "180+1"]
[EndTime "15:03:13 PST"]
[Termination "GmSergioBarrientos won by resignation"]

1. c4 {[%clk 0:02:53.8]} 1... e6 {[%clk 0:02:59.6]} 2. Nf3 {[%clk 0:02:53.2]}
2... d5 {[%clk 0:02:59.4]} 3. e3 {[%clk 0:02:52.3]} 3... Nf6 {[%clk 0:02:59.3]}
4. Nc3 {[%clk 0:02:52.4]} 4... Be7 {[%clk 0:02:59.2]} 5. b3 {[%clk 0:02:52.5]}
5... O-O {[%clk 0:02:58]} 6. Bb2 {[%clk 0:02:52.7]} 6... a5 {[%clk 0:02:58.4]}
7. Qc2 {[%clk 0:02:52.3]} 7... Na6 {[%clk 0:02:51.8]} 8. a3 {[%clk 0:02:48.6]}
8... Nc5 {[%clk 0:02:50.7]} 9. Be2 {[%clk 0:02:43.2]} 9... b6 {[%clk 0:02:49.6]}
10. O-O {[%clk 0:02:42.6]} 10... Bb7 {[%clk 0:02:49.6]} 11. Rfd1 {[%clk
0:02:41.3]} 11... Nce4 {[%clk 0:02:27.2]} 12. d3 {[%clk 0:02:40.2]} 12... Nxc3
{[%clk 0:02:26.8]} 13. Qxc3 {[%clk 0:02:41.1]} 13... Re8 {[%clk 0:02:19.7]} 14.
Rac1 {[%clk 0:02:40.6]} 14... c6 {[%clk 0:02:18.2]} 15. h3 {[%clk 0:02:33.9]}
15... Rc8 {[%clk 0:02:17.3]} 16. Qc2 {[%clk 0:02:27.5]} 16... Nd7 {[%clk
0:02:12.8]} 17. d4 {[%clk 0:02:25.8]} 17... Nf6 {[%clk 0:02:09.9]} 18. Bd3
{[%clk 0:02:25.3]} 18... Qc7 {[%clk 0:02:01]} 19. Qe2 {[%clk 0:02:23.9]} 19...
Qb8 {[%clk 0:01:58.6]} 20. Rc2 {[%clk 0:02:22.9]} 20... Qa8 {[%clk 0:01:48.2]}
21. Rdc1 {[%clk 0:02:21.1]} 21... Nd7 {[%clk 0:01:41.9]} 22. Nd2 {[%clk
0:02:20.6]} 22... f5 {[%clk 0:01:39.7]} 23. cxd5 {[%clk 0:02:17.9]} 23... cxd5
{[%clk 0:01:38.7]} 24. Bb5 {[%clk 0:02:17.8]} 24... Red8 {[%clk 0:01:19.4]} 25.
Nf3 {[%clk 0:02:15.8]} 25... Bf6 {[%clk 0:01:08]} 26. Rxc8 {[%clk 0:02:13.6]}
26... Bxc8 {[%clk 0:01:07.3]} 27. Rc7 {[%clk 0:02:13.2]} 27... Qb8 {[%clk
0:01:01.2]} 28. Qc2 {[%clk 0:02:12.5]} 28... Nf8 {[%clk 0:00:59.5]} 29. Ne5
{[%clk 0:02:05.1]} 29... Bxe5 {[%clk 0:00:59]} 30. dxe5 {[%clk 0:02:06]} 30...
Bd7 {[%clk 0:00:59]} 31. Bxd7 {[%clk 0:02:03.1]} 31... Rxd7 {[%clk 0:00:59.1]}
32. Rc6 {[%clk 0:02:03.2]} 32... Qb7 {[%clk 0:00:53.3]} 33. Bd4 {[%clk
0:02:03.1]} 33... b5 {[%clk 0:00:51.3]} 34. Qc5 {[%clk 0:02:01.5]} 34... b4
{[%clk 0:00:49.4]} 35. a4 {[%clk 0:02:00.8]} 1-0

[Event "Late-Titled-Tuesday-Blitz-February-27-2024"]
[Site "Chess.com"]
[Date "2024.02.27"]
[Round "6"]
[White "Rutricks"]
[Black "dropstoneDP"]
[Result "1/2-1/2"]
[WhiteElo "2697"]
[BlackElo "2975"]
[TimeControl "180+1"]
[EndTime "15:03:25 PST"]
[Termination "Game drawn by repetition"]

1. c4 {[%clk 0:03:00.9]} 1... c5 {[%clk 0:02:59.5]} 2. g3 {[%clk 0:03:00.8]}
2... Nf6 {[%clk 0:02:59.4]} 3. Bg2 {[%clk 0:03:01.6]} 3... Nc6 {[%clk
0:02:59.6]} 4. Nc3 {[%clk 0:03:01.8]} 4... e6 {[%clk 0:02:59.7]} 5. Nf3 {[%clk
0:03:01.6]} 5... d5 {[%clk 0:02:59.4]} 6. cxd5 {[%clk 0:03:00.9]} 6... exd5
{[%clk 0:03:00.3]} 7. d4 {[%clk 0:03:01.3]} 7... cxd4 {[%clk 0:03:01.2]} 8. Nxd4
{[%clk 0:03:01.6]} 8... Bc5 {[%clk 0:03:01.8]} 9. Nb3 {[%clk 0:02:59.6]} 9...
Bb6 {[%clk 0:03:02]} 10. O-O {[%clk 0:02:58.8]} 10... d4 {[%clk 0:03:02.2]} 11.
Na4 {[%clk 0:02:57.6]} 11... O-O {[%clk 0:03:02.7]} 12. Bg5 {[%clk 0:02:52.7]}
12... h6 {[%clk 0:03:02.7]} 13. Bxf6 {[%clk 0:02:50.1]} 13... Qxf6 {[%clk
0:03:03]} 14. Nxb6 {[%clk 0:02:50.5]} 14... axb6 {[%clk 0:03:03.9]} 15. Bxc6
{[%clk 0:02:50.8]} 15... bxc6 {[%clk 0:03:04.8]} 16. Qxd4 {[%clk 0:02:50.6]}
16... Rd8 {[%clk 0:03:02]} 17. Qxb6 {[%clk 0:02:24.6]} 17... Bh3 {[%clk
0:02:34.8]} 18. Rfd1 {[%clk 0:02:23.9]} 18... Rdb8 {[%clk 0:02:25.3]} 19. Qd4
{[%clk 0:02:17.1]} 19... Qxd4 {[%clk 0:02:24.9]} 20. Nxd4 {[%clk 0:02:17.6]}
20... Rxb2 {[%clk 0:02:23.9]} 21. Rac1 {[%clk 0:02:16.8]} 21... Raxa2 {[%clk
0:02:16.4]} 22. Rxc6 {[%clk 0:02:09]} 22... Rd2 {[%clk 0:02:14.1]} 23. Rcc1
{[%clk 0:02:09.1]} 23... g6 {[%clk 0:01:53.7]} 24. f3 {[%clk 0:02:09.1]} 24...
Rxe2 {[%clk 0:01:49.7]} 25. Nxe2 {[%clk 0:02:10]} 25... Rxe2 {[%clk 0:01:49.9]}
26. Rd8+ {[%clk 0:01:27.7]} 26... Kg7 {[%clk 0:01:49.8]} 27. Rcd1 {[%clk
0:01:28.4]} 27... Rg2+ {[%clk 0:01:48.1]} 28. Kh1 {[%clk 0:01:28.4]} 28... Rf2
{[%clk 0:01:42.3]} 29. R8d3 {[%clk 0:01:17.5]} 29... h5 {[%clk 0:01:38.9]} 30.
Kg1 {[%clk 0:01:16.8]} 30... Rg2+ {[%clk 0:01:38.6]} 31. Kh1 {[%clk 0:01:17.5]}
31... Rf2 {[%clk 0:01:39.2]} 32. Kg1 {[%clk 0:00:48.4]} 32... Rg2+ {[%clk
0:01:39.3]} 33. Kh1 {[%clk 0:00:49.2]} 33... Rf2 {[%clk 0:01:39.9]} 1/2-1/2

[Event "Late-Titled-Tuesday-Blitz-February-27-2024"]
[Site "Chess.com"]
[Date "2024.02.27"]
[Round "6"]
[White "maurovargas01"]
[Black "Felix-Rose"]
[Result "0-1"]
[WhiteElo "1845"]
[BlackElo "2267"]
[TimeControl "180+1"]
[EndTime "15:03:29 PST"]
[Termination "Felix-Rose won by resignation"]

1. e4 {[%clk 0:02:59.4]} 1... e5 {[%clk 0:02:59.7]} 2. Nf3 {[%clk 0:02:58.7]}
2... Nc6 {[%clk 0:03:00.2]} 3. Bc4 {[%clk 0:02:59.1]} 3... Nf6 {[%clk
0:02:59.8]} 4. O-O {[%clk 0:02:58.3]} 4... Bc5 {[%clk 0:02:59.5]} 5. d4 {[%clk
0:02:57.8]} 5... Bxd4 {[%clk 0:02:58.8]} 6. Nxd4 {[%clk 0:02:57.5]} 6... Nxd4
{[%clk 0:02:59.3]} 7. Bg5 {[%clk 0:02:57.5]} 7... h6 {[%clk 0:02:53.2]} 8. f4
{[%clk 0:02:57]} 8... d6 {[%clk 0:02:49.3]} 9. fxe5 {[%clk 0:02:54.7]} 9... dxe5
{[%clk 0:02:48.2]} 10. Bxf6 {[%clk 0:02:47.9]} 10... gxf6 {[%clk 0:02:49.1]} 11.
c3 {[%clk 0:02:44.5]} 11... Be6 {[%clk 0:02:41.5]} 12. Qa4+ {[%clk 0:02:15.2]}
12... Bd7 {[%clk 0:02:36.5]} 13. Qd1 {[%clk 0:02:03.2]} 13... Ne6 {[%clk
0:02:32.7]} 14. Qh5 {[%clk 0:01:57.2]} 14... Qe7 {[%clk 0:02:31.1]} 15. g3
{[%clk 0:01:49.2]} 15... Qc5+ {[%clk 0:02:28.8]} 16. Kg2 {[%clk 0:01:48.5]}
16... Qxc4 {[%clk 0:02:29.1]} 17. Nd2 {[%clk 0:01:43.8]} 17... Qd3 {[%clk
0:02:22.9]} 18. Rad1 {[%clk 0:01:42.9]} 18... O-O-O {[%clk 0:02:04.3]} 19. Rxf6
{[%clk 0:01:42.2]} 19... Bc6 {[%clk 0:01:58.3]} 20. Qxe5 {[%clk 0:01:36.5]}
20... Qe2+ {[%clk 0:01:52]} 21. Rf2 {[%clk 0:01:18.9]} 21... Qxd1 {[%clk
0:01:49.9]} 22. Nc4 {[%clk 0:01:14.8]} 22... Qd3 {[%clk 0:01:44.4]} 23. Na5
{[%clk 0:01:03]} 23... Bxe4+ {[%clk 0:01:39.9]} 24. Kh3 {[%clk 0:00:55]} 24...
Ng5+ {[%clk 0:01:37.7]} 25. Kh4 {[%clk 0:00:53.7]} 25... Nf3+ {[%clk 0:01:33.4]}
0-1

[Event "Late-Titled-Tuesday-Blitz-February-27-2024"]
[Site "Chess.com"]
[Date "2024.02.27"]
[Round "6"]
[White "MolecularChemist"]
[Black "Vigg-Sama"]
[Result "1-0"]
[WhiteElo "2861"]
[BlackElo "2263"]
[TimeControl "180+1"]
[EndTime "15:03:40 PST"]
[Termination "MolecularChemist won by resignation"]

1. Nf3 {[%clk 0:03:00.9]} 1... Nf6 {[%clk 0:02:59.1]} 2. c4 {[%clk 0:02:59.3]}
2... g6 {[%clk 0:02:58.2]} 3. b3 {[%clk 0:02:58.4]} 3... Bg7 {[%clk 0:02:56.9]}
4. Bb2 {[%clk 0:02:55.1]} 4... O-O {[%clk 0:02:57.5]} 5. g3 {[%clk 0:02:54.9]}
5... c5 {[%clk 0:02:56.4]} 6. Bg2 {[%clk 0:02:36.7]} 6... Nc6 {[%clk 0:02:55.7]}
7. O-O {[%clk 0:02:37.2]} 7... d5 {[%clk 0:02:42.7]} 8. cxd5 {[%clk 0:02:38.1]}
8... Nxd5 {[%clk 0:02:42]} 9. Bxg7 {[%clk 0:02:38.2]} 9... Kxg7 {[%clk
0:02:42.2]} 10. Qc1 {[%clk 0:02:38.8]} 10... b6 {[%clk 0:02:39.5]} 11. Qb2+
{[%clk 0:02:33.2]} 11... f6 {[%clk 0:02:34.4]} 12. d4 {[%clk 0:02:33.3]} 12...
cxd4 {[%clk 0:02:28.7]} 13. Nxd4 {[%clk 0:02:34.2]} 13... Nxd4 {[%clk 0:02:29]}
14. Qxd4 {[%clk 0:02:35.1]} 14... Bb7 {[%clk 0:02:27.3]} 15. Rd1 {[%clk
0:02:32.3]} 15... e6 {[%clk 0:02:21.1]} 16. Nc3 {[%clk 0:02:27.1]} 16... Nxc3
{[%clk 0:02:18.2]} 17. Qxc3 {[%clk 0:02:28]} 17... Qe7 {[%clk 0:02:09.6]} 18.
Bxb7 {[%clk 0:02:22.9]} 18... Qxb7 {[%clk 0:02:10.5]} 19. Rd6 {[%clk 0:02:23.1]}
19... Rac8 {[%clk 0:02:02.2]} 20. Qd3 {[%clk 0:02:10.5]} 20... Rf7 {[%clk
0:01:48.2]} 21. Rxe6 {[%clk 0:02:10.1]} 21... Rd7 {[%clk 0:01:48.4]} 22. Rd6
{[%clk 0:01:59.3]} 22... Rcd8 {[%clk 0:01:46.7]} 23. Rxd7+ {[%clk 0:01:59.3]}
23... Rxd7 {[%clk 0:01:47.6]} 24. Qc2 {[%clk 0:01:58.8]} 24... Qd5 {[%clk
0:01:43.8]} 25. Rc1 {[%clk 0:01:58.1]} 25... Re7 {[%clk 0:01:43.5]} 26. e3
{[%clk 0:01:56.6]} 26... Rd7 {[%clk 0:01:43.4]} 27. h4 {[%clk 0:01:55.3]} 27...
h5 {[%clk 0:01:43.1]} 28. Qc6 {[%clk 0:01:47.5]} 28... Qd2 {[%clk 0:01:38]} 29.
Rc2 {[%clk 0:01:46.3]} 29... Qd1+ {[%clk 0:01:37.9]} 30. Kg2 {[%clk 0:01:46.5]}
30... Qg4 {[%clk 0:01:37.9]} 31. Rc4 {[%clk 0:01:45.1]} 31... Qd1 {[%clk
0:01:36.7]} 32. Rf4 {[%clk 0:01:40.4]} 32... Qd6 {[%clk 0:01:30.3]} 33. Qxd6
{[%clk 0:01:35.4]} 33... Rxd6 {[%clk 0:01:31.2]} 34. Rd4 {[%clk 0:01:35.6]}
34... Rxd4 {[%clk 0:01:19.2]} 35. exd4 {[%clk 0:01:36.5]} 35... Kf7 {[%clk
0:01:19.6]} 36. Kf3 {[%clk 0:01:23.6]} 36... Ke6 {[%clk 0:01:16.7]} 37. Ke4
{[%clk 0:01:23.9]} 37... g5 {[%clk 0:01:10.8]} 38. d5+ {[%clk 0:01:23.1]} 38...
Kd6 {[%clk 0:01:05.1]} 39. Kf5 {[%clk 0:01:22.6]} 1-0

[Event "Late-Titled-Tuesday-Blitz-February-27-2024"]
[Site "Chess.com"]
[Date "2024.02.27"]
[Round "6"]
[White "KaydenTroffChess"]
[Black "marcodobrikov"]
[Result "1-0"]
[WhiteElo "2817"]
[BlackElo "2590"]
[TimeControl "180+1"]
[EndTime "15:03:43 PST"]
[Termination "KaydenTroffChess won by resignation"]

1. d4 {[%clk 0:03:00.9]} 1... f5 {[%clk 0:02:59.6]} 2. g3 {[%clk 0:02:54.4]}
2... Nf6 {[%clk 0:02:59.8]} 3. Bg5 {[%clk 0:02:54.3]} 3... d5 {[%clk 0:03:00.5]}
4. Bxf6 {[%clk 0:02:54.4]} 4... exf6 {[%clk 0:03:00.6]} 5. Bg2 {[%clk 0:02:54]}
5... c6 {[%clk 0:03:00.3]} 6. Nf3 {[%clk 0:02:52.9]} 6... Bd6 {[%clk 0:03:00.4]}
7. O-O {[%clk 0:02:52.6]} 7... f4 {[%clk 0:02:59.7]} 8. c4 {[%clk 0:02:47.4]}
8... dxc4 {[%clk 0:02:57.4]} 9. Qc2 {[%clk 0:02:46.2]} 9... Be6 {[%clk 0:02:56]}
10. Nfd2 {[%clk 0:02:42.4]} 10... O-O {[%clk 0:02:43.8]} 11. Nxc4 {[%clk
0:02:41]} 11... Bc7 {[%clk 0:02:44.6]} 12. Rd1 {[%clk 0:02:39.5]} 12... Nd7
{[%clk 0:02:39]} 13. d5 {[%clk 0:02:20.4]} 13... cxd5 {[%clk 0:02:39.2]} 14.
Bxd5 {[%clk 0:02:21.3]} 14... Bxd5 {[%clk 0:02:39.7]} 15. Rxd5 {[%clk
0:02:21.8]} 15... Qe8 {[%clk 0:02:34.5]} 16. Qb3 {[%clk 0:02:17.5]} 16... Kh8
{[%clk 0:02:20.5]} 17. Qxb7 {[%clk 0:02:04]} 17... Qxe2 {[%clk 0:02:00.9]} 18.
Rxd7 {[%clk 0:01:55.3]} 18... Rab8 {[%clk 0:01:28.4]} 19. Nc3 {[%clk 0:01:29.2]}
19... Qxc4 {[%clk 0:01:27.3]} 20. Qxc7 {[%clk 0:01:28.9]} 20... Qg8 {[%clk
0:01:15.4]} 21. Qxf4 {[%clk 0:01:27.9]} 21... Rxb2 {[%clk 0:01:14.8]} 22. Re1
{[%clk 0:01:27]} 22... Re8 {[%clk 0:01:11.3]} 23. Rxe8 {[%clk 0:01:13]} 23...
Qxe8 {[%clk 0:01:12.2]} 24. Qe4 {[%clk 0:01:11.9]} 24... Qc8 {[%clk 0:01:08.6]}
25. Qe7 {[%clk 0:01:03.5]} 25... Rb1+ {[%clk 0:01:03.1]} 26. Nxb1 {[%clk
0:01:03]} 26... Qc1+ {[%clk 0:01:04]} 27. Kg2 {[%clk 0:01:03.2]} 27... Qc6+
{[%clk 0:01:04.9]} 28. f3 {[%clk 0:01:03.4]} 28... Qc2+ {[%clk 0:01:04.5]} 29.
Nd2 {[%clk 0:01:03.8]} 29... Qg6 {[%clk 0:01:02.7]} 30. Rd8+ {[%clk 0:01:03.5]}
30... Qe8 {[%clk 0:01:02.4]} 1-0

[Event "Late-Titled-Tuesday-Blitz-February-27-2024"]
[Site "Chess.com"]
[Date "2024.02.27"]
[Round "6"]
[White "Anna20240"]
[Black "jaramsdal"]
[Result "1-0"]
[WhiteElo "1927"]
[BlackElo "2224"]
[TimeControl "180+1"]
[EndTime "15:03:44 PST"]
[Termination "Anna20240 won by resignation"]

1. d4 {[%clk 0:03:00.9]} 1... Nf6 {[%clk 0:02:29.2]} 2. c4 {[%clk 0:02:59.4]}
2... e6 {[%clk 0:02:29.3]} 3. Nf3 {[%clk 0:02:58.4]} 3... d5 {[%clk 0:02:26.4]}
4. g3 {[%clk 0:02:53.5]} 4... Bb4+ {[%clk 0:02:23.6]} 5. Bd2 {[%clk 0:02:53.3]}
5... Be7 {[%clk 0:02:24.3]} 6. Bg2 {[%clk 0:02:50.1]} 6... O-O {[%clk
0:02:24.4]} 7. cxd5 {[%clk 0:02:49.3]} 7... exd5 {[%clk 0:02:22.5]} 8. O-O
{[%clk 0:02:49.9]} 8... c6 {[%clk 0:02:19.4]} 9. Nc3 {[%clk 0:02:47.7]} 9... Bf5
{[%clk 0:02:18.4]} 10. Re1 {[%clk 0:02:46.9]} 10... Re8 {[%clk 0:02:16.4]} 11.
Ne5 {[%clk 0:02:45.1]} 11... Nbd7 {[%clk 0:02:11.3]} 12. Nxd7 {[%clk 0:02:43.7]}
12... Nxd7 {[%clk 0:02:10.3]} 13. e4 {[%clk 0:02:43.6]} 13... dxe4 {[%clk
0:02:06.6]} 14. Nxe4 {[%clk 0:02:42.4]} 14... Nf6 {[%clk 0:01:59.1]} 15. Nxf6+
{[%clk 0:02:16.7]} 15... Bxf6 {[%clk 0:02:00]} 16. Rxe8+ {[%clk 0:02:15.1]}
16... Qxe8 {[%clk 0:01:50.5]} 17. Bc3 {[%clk 0:02:15.4]} 17... h5 {[%clk
0:01:39]} 18. Qxh5 {[%clk 0:02:11.3]} 18... g6 {[%clk 0:01:23.9]} 19. Qf3 {[%clk
0:02:06.4]} 19... Kg7 {[%clk 0:01:20.5]} 20. Re1 {[%clk 0:02:04.9]} 20... Qd7
{[%clk 0:01:20.5]} 21. d5 {[%clk 0:01:33.7]} 21... Bxc3 {[%clk 0:01:20.2]} 22.
Qxc3+ {[%clk 0:01:32.6]} 22... Kh7 {[%clk 0:01:19.3]} 23. dxc6 {[%clk
0:01:32.5]} 23... bxc6 {[%clk 0:01:18]} 24. Bxc6 {[%clk 0:01:31.8]} 24... Qd8
{[%clk 0:01:14.4]} 25. Bxa8 {[%clk 0:01:31.6]} 25... Qxa8 {[%clk 0:01:15.3]} 26.
Re7 {[%clk 0:01:24.9]} 26... Qd5 {[%clk 0:01:09.9]} 27. Qb3 {[%clk 0:01:03.6]}
27... Qf3 {[%clk 0:01:07.7]} 28. Qxf3 {[%clk 0:00:57.4]} 1-0

[Event "Late-Titled-Tuesday-Blitz-February-27-2024"]
[Site "Chess.com"]
[Date "2024.02.27"]
[Round "6"]
[White "QuintilianoR"]
[Black "rhungaski"]
[Result "1-0"]
[WhiteElo "2753"]
[BlackElo "2594"]
[TimeControl "180+1"]
[EndTime "15:03:50 PST"]
[Termination "QuintilianoR won on time"]

1. Nf3 {[%clk 0:03:00.7]} 1... c5 {[%clk 0:02:59.3]} 2. e4 {[%clk 0:03:00.2]}
2... Nc6 {[%clk 0:02:59.5]} 3. c3 {[%clk 0:02:59.6]} 3... Nf6 {[%clk 0:02:58.5]}
4. e5 {[%clk 0:02:59.6]} 4... Nd5 {[%clk 0:02:58.9]} 5. Bc4 {[%clk 0:03:00.2]}
5... Nb6 {[%clk 0:02:56.8]} 6. Bb3 {[%clk 0:03:00.1]} 6... d5 {[%clk 0:02:56.5]}
7. exd6 {[%clk 0:02:59.8]} 7... Qxd6 {[%clk 0:02:55.6]} 8. O-O {[%clk
0:02:59.8]} 8... Be6 {[%clk 0:02:54.4]} 9. Na3 {[%clk 0:02:59.7]} 9... a6 {[%clk
0:02:48.9]} 10. Re1 {[%clk 0:02:55.4]} 10... Bxb3 {[%clk 0:01:53.3]} 11. axb3
{[%clk 0:02:56.1]} 11... e6 {[%clk 0:01:43.3]} 12. Nc4 {[%clk 0:02:54]} 12...
Nxc4 {[%clk 0:01:42.4]} 13. bxc4 {[%clk 0:02:54.9]} 13... Be7 {[%clk 0:01:33.6]}
14. d4 {[%clk 0:02:54.4]} 14... Rd8 {[%clk 0:01:01.2]} 15. Qb3 {[%clk
0:02:46.6]} 15... cxd4 {[%clk 0:00:55.5]} 16. Qxb7 {[%clk 0:02:42.5]} 16... Rb8
{[%clk 0:00:21]} 17. Qxa6 {[%clk 0:02:40.4]} 17... dxc3 {[%clk 0:00:19.3]} 18.
Bf4 {[%clk 0:02:29.9]} 18... Qxf4 {[%clk 0:00:10.6]} 19. Qxc6+ {[%clk
0:02:29.4]} 19... Kf8 {[%clk 0:00:11.4]} 20. bxc3 {[%clk 0:02:25.1]} 20... g5
{[%clk 0:00:11.7]} 21. Ra7 {[%clk 0:02:17]} 21... g4 {[%clk 0:00:10.1]} 22. Nd4
{[%clk 0:02:04.5]} 22... Rb2 {[%clk 0:00:09.4]} 23. Rf1 {[%clk 0:01:57.5]} 23...
Bf6 {[%clk 0:00:05.9]} 24. Nxe6+ {[%clk 0:01:51.2]} 24... fxe6 {[%clk
0:00:04.1]} 25. Qc8+ {[%clk 0:01:50.8]} 1-0

[Event "Late-Titled-Tuesday-Blitz-February-27-2024"]
[Site "Chess.com"]
[Date "2024.02.27"]
[Round "6"]
[White "Chessdude1987"]
[Black "LUISMIGUELOV"]
[Result "0-1"]
[WhiteElo "2345"]
[BlackElo "2190"]
[TimeControl "180+1"]
[EndTime "15:04:15 PST"]
[Termination "LUISMIGUELOV won by resignation"]

1. e4 {[%clk 0:03:00.9]} 1... d5 {[%clk 0:02:48.9]} 2. exd5 {[%clk 0:03:00.4]}
2... Nf6 {[%clk 0:02:48.1]} 3. Nf3 {[%clk 0:03:01.3]} 3... Nxd5 {[%clk
0:02:46.2]} 4. d4 {[%clk 0:03:00.9]} 4... Bg4 {[%clk 0:02:45.7]} 5. Be2 {[%clk
0:03:00.9]} 5... e6 {[%clk 0:02:44.8]} 6. h3 {[%clk 0:03:00.9]} 6... Bh5 {[%clk
0:02:43.9]} 7. c4 {[%clk 0:02:59.4]} 7... Nf6 {[%clk 0:02:43.2]} 8. Nc3 {[%clk
0:02:59.7]} 8... Nbd7 {[%clk 0:02:41.4]} 9. O-O {[%clk 0:02:53.5]} 9... Be7
{[%clk 0:02:40]} 10. Bf4 {[%clk 0:02:47.1]} 10... O-O {[%clk 0:02:39.5]} 11. Ne5
{[%clk 0:02:42.8]} 11... Bxe2 {[%clk 0:02:36.4]} 12. Qxe2 {[%clk 0:02:42.3]}
12... c5 {[%clk 0:02:35.2]} 13. dxc5 {[%clk 0:02:36.3]} 13... Bxc5 {[%clk
0:02:27.3]} 14. Rad1 {[%clk 0:02:35.9]} 14... Qe7 {[%clk 0:02:21.6]} 15. b4
{[%clk 0:02:05]} 15... Bxb4 {[%clk 0:02:16.9]} 16. Nxd7 {[%clk 0:02:04.7]} 16...
Nxd7 {[%clk 0:02:15.8]} 17. Nb5 {[%clk 0:02:00.5]} 17... a6 {[%clk 0:02:13.3]}
18. Nd6 {[%clk 0:01:58.6]} 18... Qf6 {[%clk 0:02:03.5]} 19. Bg3 {[%clk
0:01:55.2]} 19... Bxd6 {[%clk 0:02:00.2]} 20. Rxd6 {[%clk 0:01:52.3]} 20... Nc5
{[%clk 0:01:43.5]} 21. Qe3 {[%clk 0:01:48.4]} 21... Rac8 {[%clk 0:01:41.4]} 22.
Rfd1 {[%clk 0:01:40.3]} 22... h6 {[%clk 0:01:40.8]} 23. Be5 {[%clk 0:01:35]}
23... Qg6 {[%clk 0:01:40]} 24. Bd4 {[%clk 0:01:31.4]} 24... Ne4 {[%clk
0:01:32.5]} 25. Rd7 {[%clk 0:01:30]} 25... Nf6 {[%clk 0:01:28.9]} 26. Rxb7
{[%clk 0:01:27.1]} 26... Rxc4 {[%clk 0:01:28.1]} 27. Qe2 {[%clk 0:01:12.9]}
27... Ra4 {[%clk 0:01:27.4]} 28. Rd3 {[%clk 0:01:01.7]} 28... Qe4 {[%clk
0:01:26]} 29. Qxe4 {[%clk 0:00:44.3]} 29... Nxe4 {[%clk 0:01:25.6]} 30. Be5
{[%clk 0:00:30.5]} 30... Nc5 {[%clk 0:01:20.8]} 31. Rbb3 {[%clk 0:00:26.8]}
31... Nxd3 {[%clk 0:01:19.5]} 32. Rxd3 {[%clk 0:00:25.9]} 32... Rxa2 {[%clk
0:01:20]} 33. Rg3 {[%clk 0:00:23.7]} 33... f6 {[%clk 0:01:19.3]} 0-1

[Event "Late-Titled-Tuesday-Blitz-February-27-2024"]
[Site "Chess.com"]
[Date "2024.02.27"]
[Round "6"]
[White "pinguino120"]
[Black "JackRodgers"]
[Result "0-1"]
[WhiteElo "2364"]
[BlackElo "2518"]
[TimeControl "180+1"]
[EndTime "15:04:20 PST"]
[Termination "JackRodgers won by resignation"]

1. Nf3 {[%clk 0:03:00.9]} 1... c5 {[%clk 0:02:58.2]} 2. e4 {[%clk 0:02:56.4]}
2... g6 {[%clk 0:02:57.9]} 3. c3 {[%clk 0:02:43.4]} 3... Bg7 {[%clk 0:02:57]} 4.
d4 {[%clk 0:02:40.5]} 4... cxd4 {[%clk 0:02:57.9]} 5. cxd4 {[%clk 0:02:41.4]}
5... d5 {[%clk 0:02:55.6]} 6. e5 {[%clk 0:02:37.7]} 6... Bg4 {[%clk 0:02:55]} 7.
Be2 {[%clk 0:02:36.7]} 7... Nc6 {[%clk 0:02:50.7]} 8. O-O {[%clk 0:02:33.8]}
8... Nh6 {[%clk 0:02:50.2]} 9. Nc3 {[%clk 0:02:32.2]} 9... O-O {[%clk
0:02:46.3]} 10. h3 {[%clk 0:02:29.8]} 10... Bxf3 {[%clk 0:02:46.1]} 11. Bxf3
{[%clk 0:02:30.7]} 11... Nf5 {[%clk 0:02:46.1]} 12. Be3 {[%clk 0:02:26.8]} 12...
e6 {[%clk 0:02:42.3]} 13. Qb3 {[%clk 0:02:23.2]} 13... Ncxd4 {[%clk 0:02:38.6]}
14. Qd1 {[%clk 0:02:05.6]} 14... Nxf3+ {[%clk 0:02:29.7]} 15. Qxf3 {[%clk
0:02:06.5]} 15... d4 {[%clk 0:02:26.4]} 16. Rad1 {[%clk 0:02:05.4]} 16... Bxe5
{[%clk 0:02:25.1]} 17. Ne4 {[%clk 0:02:00.8]} 17... Qe7 {[%clk 0:02:21.3]} 18.
Bg5 {[%clk 0:01:57.9]} 18... f6 {[%clk 0:02:20.5]} 19. Bc1 {[%clk 0:01:56.4]}
19... Rad8 {[%clk 0:02:14.5]} 20. g4 {[%clk 0:01:55]} 20... Nh4 {[%clk
0:02:12.3]} 21. Qb3 {[%clk 0:01:53.5]} 21... Kh8 {[%clk 0:02:02.8]} 22. Bh6
{[%clk 0:01:52.1]} 22... Rf7 {[%clk 0:01:57.6]} 23. f4 {[%clk 0:01:46.4]} 23...
Bb8 {[%clk 0:01:53.6]} 24. g5 {[%clk 0:01:46.2]} 24... Nf5 {[%clk 0:01:41.2]}
25. gxf6 {[%clk 0:01:44]} 25... Qd7 {[%clk 0:01:33.1]} 26. Bg5 {[%clk 0:01:39]}
26... Qd5 {[%clk 0:01:28]} 27. Qxd5 {[%clk 0:01:33.2]} 27... exd5 {[%clk
0:01:28.9]} 28. Nc5 {[%clk 0:01:29.4]} 28... Ne3 {[%clk 0:01:29.2]} 29. Ne6
{[%clk 0:01:27.8]} 29... Re8 {[%clk 0:01:25.3]} 30. Ng7 {[%clk 0:01:26.8]} 30...
Re4 {[%clk 0:01:18.7]} 31. Rc1 {[%clk 0:01:23.9]} 31... Bc7 {[%clk 0:01:14.9]}
32. Rfe1 {[%clk 0:01:05.7]} 32... d3 {[%clk 0:01:06.2]} 0-1